fUST/lending_fUST_20250901
["ID","MTS","AMOUNT","RATE_DAILY","PERIOD"]
[382713856,1756717847931,-480.0,0.00013972,2]
[382713857,1756717847940,-480.0,0.00013972,2]
[382713858,1756717847948,-480.0,0.00013972,2]
[382713859,1756717847958,-2966.11,0.00013972,2]
[382713860,1756717847967,-1042.18,0.00013972,2]
[382713861,1756717847976,-480.0,0.00013972,2]
[382713862,1756717847985,-480.0,0.00013972,2]
[382713863,1756717847994,-151.0,0.00013972,2]
[382713864,1756717848003,-480.0,0.00013972,2]
[382713865,1756717848013,-1154.03,0.00013972,2]
[382713866,1756717848024,-480.0,0.00013972,2]
[382713867,1756717848034,-627.58,0.00013972,2]
[382713868,1756717848043,-481.41361757,0.00013972,2]
[382713869,1756717848052,-480.0,0.00013972,2]
[382713870,1756717848063,-480.0,0.00013972,2]
[382713871,1756717848072,-179.436393,0.00013972,2]
[382713872,1756717848082,-550.57,0.00013972,2]
[382713873,1756717848094,-480.0,0.00013972,2]
[382713874,1756717848103,-151.0,0.00013972,2]
[382713875,1756717848112,-151.52797279,0.00013972,2]
[382713876,1756717848122,-480.0,0.00013972,2]
[382713877,1756717848131,-480.0,0.00013972,2]
[382713878,1756717848141,-480.0,0.00013972,2]
[382713879,1756717848151,-653.62,0.00013972,2]
[382713880,1756717848161,-151.0,0.00013972,2]
[382713882,1756717848171,-480.0,0.00013972,2]
[382713884,1756717848180,-2077.83,0.00013972,2]
[382713886,1756717848190,-473.05920096,0.00013972,2]
[382713888,1756717848200,-480.0,0.00013972,2]
[382713890,1756717848210,-480.0,0.00013972,2]
[382713892,1756717848220,-762.85,0.00013972,2]
[382713894,1756717848230,-480.0,0.00013972,2]
[382713896,1756717848240,-796.89,0.00013972,2]
[382713898,1756717848249,-189.25323783,0.00013972,2]
[382713900,1756717848259,-346.94896235,0.00013972,2]
[382713902,1756717848268,-480.0,0.00013972,2]
[382713904,1756717848279,-480.0,0.00013972,2]
[382713906,1756717848288,-480.0,0.00013972,2]
[382713908,1756717848298,-480.0,0.00013972,2]
[382713910,1756717848307,-480.0,0.00013972,2]
[382713912,1756717848317,-480.0,0.00013972,2]
[382713914,1756717848326,-480.0,0.00013972,2]
[382713916,1756717848336,-622.06,0.00013972,2]
[382713918,1756717848345,-480.0,0.00013972,2]
[382713920,1756717848354,-766.28,0.00013972,2]
[382713922,1756717848363,-480.0,0.00013972,2]
[382713924,1756717848373,-486.23,0.00013972,2]
[382713926,1756717848383,-1643.89,0.00013972,2]
[382713928,1756717848393,-480.0,0.00013972,2]
[382713930,1756717848403,-480.0,0.00013972,2]
[382713932,1756717848412,-480.0,0.00013972,2]
[382713934,1756717848422,-480.0,0.00013972,2]
[382713936,1756717848432,-480.0,0.00013972,2]
[382713938,1756717848442,-480.0,0.00013972,2]
[382713940,1756717848451,-461.84390019,0.00013972,2]
[382713942,1756717848461,-480.0,0.00013972,2]
[382713944,1756717848470,-595.96283006,0.00013972,2]
[382713946,1756717848480,-480.0,0.00013972,2]
[382713948,1756717848488,-480.0,0.00013972,2]
[382713950,1756717848498,-480.0,0.00013972,2]
[382713952,1756717848507,-480.0,0.00013972,2]
[382713954,1756717848517,-480.0,0.00013972,2]
[382713956,1756717848526,-480.0,0.00013972,2]
[382713958,1756717848536,-556.67,0.00013972,2]
[382713960,1756717848545,-480.0,0.00013972,2]
[382713962,1756717848555,-662.21,0.00013972,2]
[382713964,1756717848564,-480.0,0.00013972,2]
[382713966,1756717848573,-480.0,0.00013972,2]
[382713968,1756717848583,-4149.33,0.00013972,2]
[382713970,1756717848593,-563.58,0.00013972,2]
[382713972,1756717848602,-1223.38,0.00013972,2]
[382713974,1756717848612,-480.0,0.00013972,2]
[382713976,1756717848621,-480.0,0.00013972,2]
[382713978,1756717848631,-480.0,0.00013972,2]
[382713980,1756717848640,-480.0,0.00013972,2]
[382713982,1756717848650,-498.2,0.00013972,2]
[382713984,1756717848660,-506.26754925,0.00013972,2]
[382713986,1756717848670,-817.64,0.00013972,2]
[382713987,1756717848679,-1610.67,0.00013972,2]
[382713989,1756717848688,-480.0,0.00013972,2]
[382713991,1756717848698,-480.0,0.00013972,2]
[382713993,1756717848707,-480.0,0.00013972,2]
[382713995,1756717848717,-1436.14,0.00013972,2]
[382713997,1756717848727,-480.0,0.00013972,2]
[382713999,1756717848736,-1264.9,0.00013972,2]
[382714001,1756717848746,-4399.02,0.00013972,2]
[382714003,1756717848755,-549.18,0.00013972,2]
[382714009,1756717848765,-958.63,0.00013972,2]
[382714011,1756717848814,-480.0,0.00013972,2]
[382714013,1756717848823,-480.0,0.00013972,2]
[382714015,1756717848833,-480.0,0.00013972,2]
[382714017,1756717848843,-480.0,0.00013972,2]
[382714019,1756717848853,-480.0,0.00013972,2]
[382714021,1756717848862,-510.41,0.00013972,2]
[382714023,1756717848871,-480.0,0.00013972,2]
[382714025,1756717848880,-480.0,0.00013972,2]
[382714026,1756717848889,-480.0,0.00013972,2]
[382714028,1756717848899,-438.11055703,0.00013972,2]
[382714030,1756717848908,-1065.06,0.00013972,2]
[382714032,1756717848918,-480.0,0.00013972,2]
[382714034,1756717848928,-568.59,0.00013972,2]
[382714036,1756717848937,-1004.41169497,0.00013972,2]
[382714038,1756717848947,-484.04014659,0.00013972,2]
[382714040,1756717848957,-480.0,0.00013972,2]
[382714042,1756717848967,-480.0,0.00013972,2]
[382714044,1756717848976,-480.0,0.00013972,2]
[382714046,1756717848985,-802.62,0.00013972,2]
[382714048,1756717848994,-480.0,0.00013972,2]
[382714050,1756717849004,-358.04560957,0.00013972,2]
[382714052,1756717849016,-480.0,0.00013972,2]
[382714054,1756717849027,-480.0,0.00013972,2]
[382714056,1756717849037,-655.27,0.00013972,2]
[382714058,1756717849046,-480.0,0.00013972,2]
[382714060,1756717849057,-480.0,0.00013972,2]
[382714062,1756717849067,-480.0,0.00013972,2]
[382714064,1756717849077,-480.0,0.00013972,2]
[382714066,1756717849086,-480.0,0.00013972,2]
[382714068,1756717849096,-480.0,0.00013972,2]
[382714070,1756717849106,-480.0,0.00013972,2]
[382714072,1756717849115,-480.0,0.00013972,2]
[382714074,1756717849125,-480.0,0.00013972,2]
[382714076,1756717849134,-480.0,0.00013972,2]
[382714078,1756717849144,-480.0,0.00013972,2]
[382714079,1756717849153,-480.0,0.00013972,2]
[382714081,1756717849162,-584.22,0.00013972,2]
[382714083,1756717849172,-1090.26,0.00013972,2]
[382714085,1756717849182,-480.0,0.00013972,2]
[382714087,1756717849191,-482.78,0.00013972,2]
[382714089,1756717849201,-480.0,0.00013972,2]
[382714091,1756717849211,-1407.73,0.00013972,2]
[382714093,1756717849221,-480.0,0.00013972,2]
[382714095,1756717849231,-480.0,0.00013972,2]
[382714097,1756717849241,-392.20297653,0.00013972,2]
[382714099,1756717849251,-480.0,0.00013972,2]
[382714101,1756717849260,-584.52,0.00013972,2]
[382714103,1756717849270,-480.0,0.00013972,2]
[382714105,1756717849279,-480.0,0.00013972,2]
[382714107,1756717849288,-480.0,0.00013972,2]
[382714109,1756717849298,-480.0,0.00013972,2]
[382714111,1756717849308,-480.0,0.00013972,2]
[382714114,1756717849318,-480.0,0.00013972,2]
[382714115,1756717849328,-480.0,0.00013972,2]
[382714117,1756717849338,-2680.3,0.00013972,2]
[382714119,1756717849347,-480.0,0.00013972,2]
[382714121,1756717849356,-669.45,0.00013972,2]
[382714123,1756717849365,-4470.52,0.00013972,2]
[382714125,1756717849375,-480.0,0.00013972,2]
[382714127,1756717849384,-480.0,0.00013972,2]
[382714129,1756717849394,-769.48,0.00013972,2]
[382714131,1756717849403,-480.0,0.00013972,2]
[382714133,1756717849412,-480.0,0.00013972,2]
[382714135,1756717849422,-484.48363425,0.00013972,2]
[382714137,1756717849431,-480.0,0.00013972,2]
[382714139,1756717849441,-480.0,0.00013972,2]
[382714141,1756717849450,-480.0,0.00013972,2]
[382714143,1756717849459,-480.0,0.00013972,2]
[382714145,1756717849468,-480.0,0.00013972,2]
[382714147,1756717849477,-1280.0,0.00013972,2]
[382714149,1756717849486,-674.48,0.00013972,2]
[382714151,1756717849495,-480.0,0.00013972,2]
[382714153,1756717849504,-480.0,0.00013972,2]
[382714155,1756717849514,-480.0,0.00013972,2]
[382714157,1756717849524,-480.0,0.00013972,2]
[382714159,1756717849534,-480.0,0.00013972,2]
[382714161,1756717849543,-480.0,0.00013972,2]
[382714163,1756717849553,-480.0,0.00013972,2]
[382714165,1756717849562,-480.0,0.00013972,2]
[382714166,1756717849571,-877.56,0.00013972,2]
[382714168,1756717849580,-493.77312248,0.00013972,2]
[382714171,1756717849591,-480.0,0.00013972,2]
[382714172,1756717849601,-754.9,0.00013972,2]
[382714174,1756717849611,-738.0,0.00013972,2]
[382714177,1756717849621,-594.5,0.00013972,2]
[382714179,1756717849631,-480.0,0.00013972,2]
[382714181,1756717849640,-480.0,0.00013972,2]
[382714183,1756717849650,-480.0,0.00013972,2]
[382714185,1756717849659,-480.0,0.00013972,2]
[382714187,1756717849669,-480.0,0.00013972,2]
[382714189,1756717849678,-480.0,0.00013972,2]
[382714191,1756717849688,-480.0,0.00013972,2]
[382714192,1756717849698,-480.0,0.00013972,2]
[382714195,1756717849707,-983.63,0.00013972,2]
[382714197,1756717849717,-480.0,0.00013972,2]
[382714198,1756717849726,-480.0,0.00013972,2]
[382714200,1756717849736,-480.0,0.00013972,2]
[382714202,1756717849746,-626.25,0.00013972,2]
[382714204,1756717849755,-480.0,0.00013972,2]
[382714206,1756717849765,-493.18,0.00013972,2]
[382714208,1756717849774,-500.0,0.00013973,2]
[382714210,1756717849783,-500.0,0.00013973,2]
[382714212,1756717849793,-164.34449582,0.00013973,2]
[382714214,1756717849803,-500.0,0.00013973,2]
[382714216,1756717849813,-415.21051009,0.00013973,2]
[382714218,1756717849822,-500.21907077,0.00013973,2]
[382714220,1756717849831,-500.0,0.00013973,2]
[382714222,1756717849842,-500.0,0.00013973,2]
[382714224,1756717849851,-500.0,0.00013973,2]
[382714226,1756717849861,-160.46472062,0.00013973,2]
[382714228,1756717849870,-500.0,0.00013973,2]
[382714230,1756717849880,-500.0,0.00013973,2]
[382714232,1756717849890,-500.0,0.00013973,2]
[382714234,1756717849899,-501.04351762,0.00013973,2]
[382714236,1756717849908,-201.0285033,0.00013973,2]
[382714238,1756717849917,-500.0,0.00013973,2]
[382714240,1756717849927,-501.68927045,0.00013973,2]
[382714242,1756717849936,-501.40795839,0.00013973,2]
[382714244,1756717849946,-500.0,0.00013973,2]
[382714246,1756717849955,-525.08306546,0.00013973,2]
[382714248,1756717849965,-500.0,0.00013973,2]
[382714250,1756717849974,-500.0,0.00013973,2]
[382714252,1756717849983,-500.0,0.00013973,2]
[382714254,1756717849992,-500.0,0.00013973,2]
[382714256,1756717850002,-500.0,0.00013973,2]
[382714258,1756717850013,-500.0,0.00013973,2]
[382714260,1756717850026,-500.0,0.00013973,2]
[382714262,1756717850036,-500.0,0.00013973,2]
[382714264,1756717850045,-500.0,0.00013973,2]
[382714266,1756717850055,-500.0,0.00013973,2]
[382714268,1756717850065,-409.94293439,0.00013973,2]
[382714270,1756717850074,-500.0,0.00013973,2]
[382714272,1756717850084,-500.0,0.00013973,2]
[382714274,1756717850096,-500.0,0.00013973,2]
[382714276,1756717850105,-390.26996667,0.00013973,2]
[382714278,1756717850115,-500.0,0.00013973,2]
[382714280,1756717850124,-500.0,0.00013973,2]
[382714282,1756717850134,-501.55060446,0.00013973,2]
[382714284,1756717850145,-500.0,0.00013973,2]
[382714286,1756717850154,-500.0,0.00013973,2]
[382714288,1756717850163,-500.0,0.00013973,2]
[382714290,1756717850172,-480.0,0.00014003,2]
[382714292,1756717850182,-2189.0,0.00014028,2]
[382714294,1756717850191,-3000.0,0.0001404,2]
[382714296,1756717850201,-151.0,0.000141,2]
[382714298,1756717850211,-151.0,0.00014104,2]
[382714300,1756717850221,-151.0,0.00014104,2]
[382714302,1756717850231,-151.0,0.00014104,2]
[382714304,1756717850242,-538.818197,0.00014104,2]
[382714306,1756717850251,-538.818197,0.00014104,2]
[382714308,1756717850260,-538.818197,0.00014104,2]
[382714310,1756717850270,-2189.0,0.00014106,2]
[382714312,1756717850279,-11366.76240249,0.00014143,2]
[382714314,1756717850289,-160.0,0.00014144,2]
[382714316,1756717850298,-5761.61135841,0.00014146,2]
[382714318,1756717850308,-720.0,0.00014169,2]
[382714320,1756717850317,-480.0,0.00014178,2]
[382714322,1756717850325,-480.0,0.00014178,2]
[382714324,1756717850335,-480.0,0.00014178,2]
[382714326,1756717850344,-480.0,0.00014178,2]
[382714327,1756717850353,-480.0,0.00014178,2]
[382714329,1756717850363,-480.0,0.00014178,2]
[382714331,1756717850372,-482.02299581,0.00014178,2]
[382714333,1756717850381,-480.0,0.00014178,2]
[382714335,1756717850390,-480.0,0.00014178,2]
[382714337,1756717850400,-480.0,0.00014178,2]
[382714339,1756717850410,-481.8628852,0.00014178,2]
[382714341,1756717850419,-480.0,0.00014178,2]
[382714343,1756717850429,-480.0,0.00014178,2]
[382714345,1756717850438,-480.0,0.00014178,2]
[382714347,1756717850448,-480.0,0.00014178,2]
[382714349,1756717850457,-251.9817288,0.00014178,2]
[382714351,1756717850466,-480.0,0.00014178,2]
[382714353,1756717850475,-480.0,0.00014178,2]
[382714355,1756717850484,-482.21072514,0.00014178,2]
[382714357,1756717850494,-483.26205905,0.00014178,2]
[382714359,1756717850503,-480.0,0.00014178,2]
[382714361,1756717850512,-716.52,0.00014178,2]
[382714363,1756717850522,-480.0,0.00014178,2]
[382714365,1756717850530,-480.0,0.00014178,2]
[382714366,1756717850539,-480.0,0.00014178,2]
[382714367,1756717850548,-480.0,0.00014178,2]
[382714368,1756717850556,-480.0,0.00014178,2]
[382714369,1756717850565,-480.0,0.00014178,2]
[382714370,1756717850574,-480.0,0.00014178,2]
[382714371,1756717850583,-480.0,0.00014178,2]
[382714372,1756717850593,-661.5,0.00014178,2]
[382714373,1756717850602,-549.99,0.00014178,2]
[382714374,1756717850611,-608.98,0.00014178,2]
[382714375,1756717850619,-480.0,0.00014178,2]
[382714376,1756717850628,-480.0,0.00014178,2]
[382714377,1756717850637,-480.0,0.00014178,2]
[382714379,1756717850646,-480.0,0.00014178,2]
[382714381,1756717850656,-731.16,0.00014178,2]
[382714383,1756717850664,-480.0,0.00014178,2]
[382714385,1756717850674,-480.0,0.00014178,2]
[382714387,1756717850683,-480.0,0.00014178,2]
[382714389,1756717850692,-482.53308073,0.00014178,2]
[382714390,1756717850701,-480.0,0.00014178,2]
[382714392,1756717850711,-480.0,0.00014178,2]
[382714394,1756717850720,-497.18,0.00014178,2]
[382714396,1756717850730,-480.0,0.00014178,2]
[382714398,1756717850739,-480.0,0.00014178,2]
[382714400,1756717850750,-480.0,0.00014178,2]
[382714403,1756717850759,-480.0,0.00014178,2]
[382714404,1756717850768,-480.0,0.00014178,2]
[382714407,1756717850778,-999.93,0.00014178,2]
[382714409,1756717850787,-553.7,0.00014178,2]
[382714410,1756717850796,-480.0,0.00014178,2]
[382714413,1756717850806,-480.0,0.00014178,2]
[382714415,1756717850816,-480.0,0.00014178,2]
[382714417,1756717850826,-480.0,0.00014178,2]
[382714419,1756717850836,-151.0,0.00014178,2]
[382714421,1756717850845,-493.19,0.00014178,2]
[382714422,1756717850855,-480.0,0.00014178,2]
[382714424,1756717850865,-480.0,0.00014178,2]
[382714426,1756717850874,-160.0,0.00014188,2]
[382714429,1756717850883,-160.0,0.00014188,2]
[382714430,1756717850893,-160.0,0.00014188,2]
[382714433,1756717850903,-217.44302069,0.00014188,2]
[382714435,1756717850913,-846.10922732,0.00014188,2]
[382714437,1756717850922,-160.0,0.00014188,2]
[382714439,1756717850932,-160.0,0.00014188,2]
[382714441,1756717850942,-232.83393981,0.00014188,2]
[382714443,1756717850951,-160.0,0.00014188,2]
[382714445,1756717850962,-417.15472785,0.00014188,2]
[382714447,1756717850971,-160.0,0.00014188,2]
[382714449,1756717850982,-425.82406011,0.00014188,2]
[382714451,1756717850991,-530.14184084,0.00014188,2]
[382714453,1756717851001,-198.0,0.00014241,2]
[382714455,1756717851010,-1001.46641687,0.00014245,2]
[382714457,1756717851025,-480.0,0.00014246,2]
[382714459,1756717851035,-480.0,0.00014246,2]
[382714461,1756717851044,-773.22,0.00014246,2]
[382714463,1756717851054,-480.0,0.00014246,2]
[382714465,1756717851065,-480.0,0.00014246,2]
[382714467,1756717851075,-480.0,0.00014246,2]
[382714469,1756717851084,-480.0,0.00014246,2]
[382714471,1756717851096,-480.0,0.00014246,2]
[382714473,1756717851106,-480.0,0.00014246,2]
[382714475,1756717851115,-747.83,0.00014246,2]
[382714477,1756717851125,-726.05,0.00014246,2]
[382714480,1756717851135,-273.37644596,0.00014246,2]
[382714482,1756717851145,-480.0,0.00014246,2]
[382714484,1756717851155,-480.0,0.00014246,2]
[382714485,1756717851165,-1031.56,0.00014246,2]
[382714488,1756717851175,-480.0,0.00014246,2]
[382714490,1756717851185,-480.0,0.00014246,2]
[382714492,1756717851195,-480.0,0.00014246,2]
[382714494,1756717851205,-480.0,0.00014246,2]
[382714496,1756717851214,-480.0,0.00014246,2]
[382714498,1756717851223,-480.0,0.00014246,2]
[382714500,1756717851233,-480.0,0.00014246,2]
[382714502,1756717851243,-1141.16,0.00014246,2]
[382714504,1756717851252,-480.0,0.00014246,2]
[382714506,1756717851262,-480.0,0.00014246,2]
[382714508,1756717851271,-480.0,0.00014246,2]
[382714510,1756717851281,-480.0,0.00014246,2]
[382714512,1756717851290,-480.0,0.00014246,2]
[382714514,1756717851300,-942.63,0.00014246,2]
[382714516,1756717851310,-480.0,0.00014246,2]
[382714518,1756717851319,-480.0,0.00014246,2]
[382714520,1756717851328,-522.25023421,0.00014246,2]
[382714523,1756717851339,-716.18,0.00014246,2]
[382714524,1756717851348,-480.0,0.00014246,2]
[382714526,1756717851357,-480.0,0.00014246,2]
[382714529,1756717851367,-480.0,0.00014246,2]
[382714531,1756717851376,-480.0,0.00014246,2]
[382714533,1756717851386,-480.0,0.00014246,2]
[382714535,1756717851396,-403.2617595,0.00014246,2]
[382714537,1756717851405,-480.0,0.00014246,2]
[382714539,1756717851414,-480.0,0.00014246,2]
[382714541,1756717851423,-480.0,0.00014246,2]
[382714543,1756717851433,-480.0,0.00014246,2]
[382714545,1756717851442,-630.15,0.00014246,2]
[382714547,1756717851452,-480.0,0.00014246,2]
[382714549,1756717851462,-480.0,0.00014246,2]
[382714551,1756717851471,-480.0,0.00014246,2]
[382714553,1756717851480,-313.245,0.00014246,2]
[382714555,1756717851490,-480.0,0.00014246,2]
[382714557,1756717851499,-480.0,0.00014246,2]
[382714559,1756717851509,-480.0,0.00014246,2]
[382714561,1756717851519,-480.0,0.00014246,2]
[382714563,1756717851528,-480.0,0.00014246,2]
[382714565,1756717851538,-602.58,0.00014246,2]
[382714567,1756717851547,-959.77,0.00014246,2]
[382714569,1756717851557,-480.0,0.00014246,2]
[382714571,1756717851566,-480.0,0.00014246,2]
[382714573,1756717851576,-480.0,0.00014246,2]
[382714575,1756717851585,-480.0,0.00014246,2]
[382714577,1756717851595,-954.21,0.00014246,2]
[382714579,1756717851605,-480.0,0.00014246,2]
[382714581,1756717851615,-480.0,0.00014246,2]
[382714583,1756717851625,-480.0,0.00014246,2]
[382714585,1756717851635,-797.02,0.00014246,2]
[382714588,1756717851644,-480.0,0.00014246,2]
[382714590,1756717851654,-485.9695288,0.00014246,2]
[382714592,1756717851665,-895.61,0.00014246,2]
[382714594,1756717851674,-935.58,0.00014246,2]
[382714596,1756717851684,-480.0,0.00014246,2]
[382714598,1756717851693,-480.0,0.00014246,2]
[382714600,1756717851704,-231.59225965,0.00014246,2]
[382714602,1756717851713,-480.0,0.00014246,2]
[382714604,1756717851723,-480.0,0.00014246,2]
[382714606,1756717851733,-480.0,0.00014246,2]
[382714608,1756717851742,-480.0,0.00014246,2]
[382714610,1756717851751,-480.0,0.00014246,2]
[382714612,1756717851760,-480.0,0.00014246,2]
[382714614,1756717851770,-480.0,0.00014246,2]
[382714616,1756717851779,-480.0,0.00014246,2]
[382714618,1756717851788,-500.83,0.00014246,2]
[382714620,1756717851798,-480.0,0.00014246,2]
[382714622,1756717851808,-213.36709051,0.00014246,2]
[382714624,1756717851817,-480.0,0.00014246,2]
[382714626,1756717851827,-776.62,0.00014246,2]
[382714629,1756717851839,-481.6478662,0.00014246,2]
[382714631,1756717851849,-480.0,0.00014246,2]
[382714633,1756717851860,-530.38,0.00014246,2]
[382714635,1756717851870,-480.0,0.00014246,2]
[382714637,1756717851880,-480.0,0.00014246,2]
[382714639,1756717851889,-480.0,0.00014246,2]
[382714641,1756717851899,-480.0,0.00014246,2]
[382714643,1756717851908,-480.0,0.00014246,2]
[382714645,1756717851918,-731.33,0.00014246,2]
[382714647,1756717851928,-480.0,0.00014246,2]
[382714649,1756717851938,-480.0,0.00014246,2]
[382714651,1756717851948,-803.59,0.00014246,2]
[382714653,1756717851958,-480.0,0.00014246,2]
[382714655,1756717851968,-151.0,0.00014246,2]
[382714657,1756717851977,-527.75,0.00014246,2]
[382714659,1756717851987,-480.0,0.00014246,2]
[382714661,1756717851997,-512.71,0.00014246,2]
[382714663,1756717852007,-480.0,0.00014246,2]
[382714665,1756717852020,-480.0,0.00014246,2]
[382714667,1756717852033,-480.0,0.00014246,2]
[382714669,1756717852043,-480.0,0.00014246,2]
[382714671,1756717852054,-480.0,0.00014246,2]
[382714673,1756717852065,-151.0,0.00014246,2]
[382714675,1756717852075,-480.0,0.00014246,2]
[382714677,1756717852085,-833.45,0.00014246,2]
[382714679,1756717852099,-480.0,0.00014246,2]
[382714681,1756717852112,-496.81,0.00014246,2]
[382714683,1756717852122,-480.0,0.00014246,2]
[382714685,1756717852132,-947.72,0.00014246,2]
[382714687,1756717852141,-480.0,0.00014246,2]
[382714689,1756717852151,-480.0,0.00014246,2]
[382714691,1756717852162,-151.0,0.00014246,2]
[382714694,1756717852174,-864.63,0.00014246,2]
[382714696,1756717852185,-480.0,0.00014246,2]
[382714698,1756717852195,-480.0,0.00014246,2]
[382714700,1756717852206,-480.0,0.00014246,2]
[382714702,1756717852219,-480.0,0.00014246,2]
[382714704,1756717852230,-151.0,0.00014246,2]
[382714706,1756717852240,-151.0,0.00014246,2]
[382714708,1756717852251,-480.0,0.00014246,2]
[382714710,1756717852268,-480.0,0.00014246,2]
[382714712,1756717852278,-480.0,0.00014246,2]
[382714714,1756717852288,-480.0,0.00014246,2]
[382714716,1756717852297,-480.0,0.00014246,2]
[382714718,1756717852307,-480.0,0.00014246,2]
[382714720,1756717852316,-480.0,0.00014246,2]
[382714723,1756717852326,-800.95,0.00014246,2]
[382714725,1756717852335,-480.0,0.00014246,2]
[382714726,1756717852347,-871.62,0.00014246,2]
[382714728,1756717852356,-480.0,0.00014246,2]
[382714731,1756717852366,-480.0,0.00014246,2]
[382714732,1756717852376,-675.63,0.00014246,2]
[382714735,1756717852386,-480.0,0.00014246,2]
[382714737,1756717852396,-480.0,0.00014246,2]
[382714739,1756717852405,-480.0,0.00014246,2]
[382714741,1756717852415,-480.0,0.00014246,2]
[382714743,1756717852424,-480.0,0.00014246,2]
[382714745,1756717852434,-480.0,0.00014246,2]
[382714747,1756717852444,-480.0,0.00014246,2]
[382714749,1756717852454,-480.0,0.00014246,2]
[382714751,1756717852464,-480.0,0.00014246,2]
[382714753,1756717852474,-834.54,0.00014246,2]
[382714755,1756717852484,-513.92,0.00014246,2]
[382714757,1756717852493,-480.0,0.00014246,2]
[382714759,1756717852503,-281.95276499,0.00014246,2]
[382714761,1756717852512,-544.34,0.00014246,2]
[382714763,1756717852522,-480.0,0.00014246,2]
[382714765,1756717852532,-480.0,0.00014246,2]
[382714767,1756717852542,-480.0,0.00014246,2]
[382714769,1756717852551,-480.0,0.00014246,2]
[382714771,1756717852560,-669.48,0.00014246,2]
[382714773,1756717852570,-1011.4,0.00014246,2]
[382714775,1756717852580,-1201.58,0.00014246,2]
[382714777,1756717852589,-480.0,0.00014246,2]
[382714779,1756717852599,-795.38,0.00014246,2]
[382714782,1756717852609,-225.80029288,0.00014246,2]
[382714784,1756717852618,-713.66,0.00014246,2]
[382714786,1756717852628,-1008.21,0.00014246,2]
[382714788,1756717852637,-1270.37,0.00014246,2]
[382714790,1756717852647,-620.19,0.00014246,2]
[382714792,1756717852656,-480.0,0.00014246,2]
[382714794,1756717852666,-480.0,0.00014246,2]
[382714796,1756717852675,-480.0,0.00014246,2]
[382714798,1756717852685,-2966.11,0.00014246,2]
[382714800,1756717852694,-1042.18,0.00014246,2]
[382714802,1756717852703,-480.0,0.00014246,2]
[382714804,1756717852713,-480.0,0.00014246,2]
[382714806,1756717852722,-1154.03,0.00014246,2]
[382714808,1756717852732,-480.0,0.00014246,2]
[382714810,1756717852742,-627.58,0.00014246,2]
[382714812,1756717852751,-550.57,0.00014246,2]
[382714814,1756717852761,-480.0,0.00014246,2]
[382714816,1756717852770,-480.0,0.00014246,2]
[382714818,1756717852782,-653.62,0.00014246,2]
[382714820,1756717852791,-480.0,0.00014246,2]
[382714822,1756717852801,-2077.83,0.00014246,2]
[382714824,1756717852811,-480.0,0.00014246,2]